[Event "Live Chess"]
[Site "Chess.com"]
[Date "2011.01.26"]
[Round "-"]
[White "hipposcottimus"]
[Black "lejitico"]
[Result "1-0"]
[CurrentPosition "2r1k3/1p2q3/p2pQR2/P2Pp1p1/1P2P3/8/4B1PP/2r2R1K w - -"]
[Timezone "UTC"]
[ECO "C41"]
[ECOUrl "https://www.chess.com/openings/Philidor-Defense-3.d4"]
[UTCDate "2011.01.26"]
[UTCTime "01:52:24"]
[WhiteElo "1434"]
[BlackElo "1331"]
[TimeControl "600+5"]
[Termination "hipposcottimus won by resignation"]
[StartTime "01:52:24"]
[EndDate "2011.01.26"]
[EndTime "02:05:07"]
[Link "https://www.chess.com/game/live/91416347"]

1. e4 {[%clk 0:10:00]} 1... e5 {[%clk 0:10:00]} 2. Nf3 {[%clk 0:10:04.2]} 2... d6 {[%clk 0:10:02.1]} 3. d4 {[%clk 0:10:08.6]} 3... Nc6 {[%clk 0:09:59.6]} 4. d5 {[%clk 0:10:11.1]} 4... Nb8 {[%clk 0:10:00]} 5. Be3 {[%clk 0:09:56.8]} 5... Bg4 {[%clk 0:10:00.5]} 6. Nbd2 {[%clk 0:09:54.4]} 6... c6 {[%clk 0:10:02.3]} 7. Bc4 {[%clk 0:09:55.4]} 7... c5 {[%clk 0:10:04.5]} 8. O-O {[%clk 0:09:51]} 8... Be7 {[%clk 0:10:04.5]} 9. a4 {[%clk 0:09:52.7]} 9... a6 {[%clk 0:10:06.4]} 10. c3 {[%clk 0:09:52.1]} 10... Nf6 {[%clk 0:10:04]} 11. a5 {[%clk 0:09:46.4]} 11... O-O {[%clk 0:10:02.6]} 12. b4 {[%clk 0:09:47.4]} 12... Nbd7 {[%clk 0:10:00.8]} 13. Qc2 {[%clk 0:09:31.9]} 13... h6 {[%clk 0:09:57.4]} 14. Nh4 {[%clk 0:09:32.3]} 14... g5 {[%clk 0:09:49.5]} 15. f3 {[%clk 0:09:30.3]} 15... gxh4 {[%clk 0:09:33.5]} 16. fxg4 {[%clk 0:09:33.8]} 16... Nxg4 {[%clk 0:09:36.3]} 17. Rae1 {[%clk 0:09:31.7]} 17... Nxe3 {[%clk 0:09:21.6]} 18. Rxe3 {[%clk 0:09:32.8]} 18... Bg5 {[%clk 0:09:23.4]} 19. Rh3 {[%clk 0:09:25.6]} 19... Nf6 {[%clk 0:09:22.4]} 20. Nf3 {[%clk 0:09:18.9]} 20... Nh5 {[%clk 0:08:49.5]} 21. Be2 {[%clk 0:09:10.6]} 21... Be3+ {[%clk 0:08:37.4]} 22. Kh1 {[%clk 0:09:08.9]} 22... Bg5 {[%clk 0:08:02.6]} 23. Nxg5 {[%clk 0:08:37.5]} 23... hxg5 {[%clk 0:07:47.6]} 24. Bxh5 {[%clk 0:08:37.4]} 24... cxb4 {[%clk 0:07:02.8]} 25. cxb4 {[%clk 0:08:40.3]} 25... Rc8 {[%clk 0:07:06.4]} 26. Qe2 {[%clk 0:08:24.5]} 26... Rc7 {[%clk 0:07:00.3]} 27. Qg4 {[%clk 0:08:20.5]} 27... Qe7 {[%clk 0:06:53.2]} 28. Rxh4 {[%clk 0:08:19]} 28... f6 {[%clk 0:06:52.3]} 29. Rh3 {[%clk 0:07:50.4]} 29... Rfc8 {[%clk 0:06:51.9]} 30. Qf5 {[%clk 0:07:39.8]} 30... Rc1 {[%clk 0:06:49.7]} 31. Be2 {[%clk 0:07:13.4]} 31... Qg7 {[%clk 0:06:31.5]} 32. Qe6+ {[%clk 0:07:07]} 32... Kf8 {[%clk 0:06:24.9]} 33. Rf3 {[%clk 0:06:53.5]} 33... Qe7 {[%clk 0:06:20.7]} 34. Rxf6+ {[%clk 0:06:54]} 34... Ke8 {[%clk 0:06:20.6]} 1-0

[Event "Live Chess"]
[Site "Chess.com"]
[Date "2011.01.26"]
[Round "-"]
[White "lejitico"]
[Black "hipposcottimus"]
[Result "0-1"]
[CurrentPosition "3r4/1b4kp/1p6/p4p1Q/4n3/1P3P2/P5PP/3q2K1 w - -"]
[Timezone "UTC"]
[ECO "D10"]
[ECOUrl "https://www.chess.com/openings/Slav-Defense-3.e3-e6"]
[UTCDate "2011.01.26"]
[UTCTime "01:41:59"]
[WhiteElo "1337"]
[BlackElo "1428"]
[TimeControl "600+5"]
[Termination "hipposcottimus won by checkmate"]
[StartTime "01:41:59"]
[EndDate "2011.01.26"]
[EndTime "01:51:40"]
[Link "https://www.chess.com/game/live/91413977"]

1. d4 {[%clk 0:10:00]} 1... d5 {[%clk 0:10:00]} 2. c4 {[%clk 0:10:03.9]} 2... c6 {[%clk 0:10:02.1]} 3. e3 {[%clk 0:10:07.5]} 3... e6 {[%clk 0:09:58.3]} 4. Bd2 {[%clk 0:10:09.5]} 4... Nd7 {[%clk 0:10:01]} 5. Nf3 {[%clk 0:10:10.4]} 5... Ngf6 {[%clk 0:10:04.4]} 6. Bd3 {[%clk 0:10:09.8]} 6... Bd6 {[%clk 0:10:07.7]} 7. Nc3 {[%clk 0:10:10.6]} 7... e5 {[%clk 0:10:09]} 8. dxe5 {[%clk 0:10:12]} 8... Bxe5 {[%clk 0:10:12.9]} 9. Nxe5 {[%clk 0:10:15]} 9... Nxe5 {[%clk 0:10:17.6]} 10. Be2 {[%clk 0:10:16.8]} 10... O-O {[%clk 0:10:18.4]} 11. cxd5 {[%clk 0:10:20.2]} 11... cxd5 {[%clk 0:10:20.4]} 12. O-O {[%clk 0:10:13.9]} 12... b6 {[%clk 0:10:12.3]} 13. e4 {[%clk 0:09:47.1]} 13... d4 {[%clk 0:10:10.6]} 14. Nd5 {[%clk 0:09:45]} 14... Nxe4 {[%clk 0:10:13.5]} 15. Be1 {[%clk 0:09:33.1]} 15... Qxd5 {[%clk 0:10:07.1]} 16. Bf3 {[%clk 0:09:36.8]} 16... Nxf3+ {[%clk 0:10:09.2]} 17. Qxf3 {[%clk 0:09:37.7]} 17... f5 {[%clk 0:09:54.6]} 18. b3 {[%clk 0:09:31.5]} 18... Bb7 {[%clk 0:09:53.2]} 19. Rd1 {[%clk 0:09:26.6]} 19... Qd7 {[%clk 0:09:49.8]} 20. Qd3 {[%clk 0:09:16.9]} 20... Rad8 {[%clk 0:09:18.5]} 21. Qc4+ {[%clk 0:09:17.2]} 21... Kh8 {[%clk 0:09:15.7]} 22. Bb4 {[%clk 0:09:16.2]} 22... Rf6 {[%clk 0:08:56.8]} 23. Rfe1 {[%clk 0:09:13.8]} 23... Rc6 {[%clk 0:08:58.2]} 24. Qe2 {[%clk 0:08:57.2]} 24... a5 {[%clk 0:08:55.9]} 25. Ba3 {[%clk 0:08:53.9]} 25... Rc3 {[%clk 0:08:47.9]} 26. Bb2 {[%clk 0:08:45]} 26... d3 {[%clk 0:08:48.6]} 27. Qh5 {[%clk 0:08:23]} 27... d2 {[%clk 0:08:14.3]} 28. Re2 {[%clk 0:08:12.2]} 28... Rc2 {[%clk 0:08:05.3]} 29. Bxg7+ {[%clk 0:07:50.4]} 29... Kxg7 {[%clk 0:08:01.8]} 30. f3 {[%clk 0:07:53.9]} 30... Rc1 {[%clk 0:08:03.2]} 31. Rxd2 {[%clk 0:07:44.2]} 31... Rxd1+ {[%clk 0:08:06.9]} 32. Rxd1 {[%clk 0:07:44.7]} 32... Qxd1# {[%clk 0:08:10.7]} 0-1

[Event "Live Chess"]
[Site "Chess.com"]
[Date "2011.01.26"]
[Round "-"]
[White "hipposcottimus"]
[Black "lejitico"]
[Result "1-0"]
[CurrentPosition "r2r2kR/pp6/6p1/3n4/4b3/5R2/PBP2P2/7K b - -"]
[Timezone "UTC"]
[ECO "C41"]
[ECOUrl "https://www.chess.com/openings/Philidor-Defense-Exchange-Variation-4.Qxd4"]
[UTCDate "2011.01.26"]
[UTCTime "01:30:38"]
[WhiteElo "1422"]
[BlackElo "1343"]
[TimeControl "600+5"]
[Termination "hipposcottimus won by checkmate"]
[StartTime "01:30:38"]
[EndDate "2011.01.26"]
[EndTime "01:41:21"]
[Link "https://www.chess.com/game/live/91411401"]

1. e4 {[%clk 0:10:00]} 1... e5 {[%clk 0:10:00]} 2. Nf3 {[%clk 0:10:03.3]} 2... d6 {[%clk 0:09:54.7]} 3. d4 {[%clk 0:10:05.7]} 3... exd4 {[%clk 0:09:56.3]} 4. Qxd4 {[%clk 0:10:05.9]} 4... Qf6 {[%clk 0:09:56.5]} 5. e5 {[%clk 0:10:00.7]} 5... dxe5 {[%clk 0:09:58.5]} 6. Nxe5 {[%clk 0:10:04.8]} 6... Qe6 {[%clk 0:10:01.9]} 7. Bc4 {[%clk 0:09:56.8]} 7... Nc6 {[%clk 0:09:56.2]} 8. Bxe6 {[%clk 0:09:55.8]} 8... Nxd4 {[%clk 0:09:59.9]} 9. Bxf7+ {[%clk 0:09:56.5]} 9... Ke7 {[%clk 0:10:00.6]} 10. Na3 {[%clk 0:09:46.9]} 10... Kf6 {[%clk 0:09:53.2]} 11. Bf4 {[%clk 0:09:25.8]} 11... Bxa3 {[%clk 0:09:50.8]} 12. O-O {[%clk 0:07:59.3]} 12... Bxb2 {[%clk 0:09:22]} 13. Rab1 {[%clk 0:07:55.3]} 13... Ne2+ {[%clk 0:09:23]} 14. Kh1 {[%clk 0:07:56.1]} 14... Bxe5 {[%clk 0:09:24.6]} 15. Bxe5+ {[%clk 0:07:57.8]} 15... Kxf7 {[%clk 0:09:25.5]} 16. Bxc7 {[%clk 0:08:02.5]} 16... Nc3 {[%clk 0:09:24.9]} 17. Rb3 {[%clk 0:08:04.4]} 17... Nd5 {[%clk 0:09:17.1]} 18. Bd6 {[%clk 0:07:57.1]} 18... Nge7 {[%clk 0:08:52.4]} 19. Rf3+ {[%clk 0:07:46.4]} 19... Nf5 {[%clk 0:08:22.1]} 20. g4 {[%clk 0:07:45.5]} 20... Rd8 {[%clk 0:08:12.6]} 21. Ba3 {[%clk 0:07:38.9]} 21... Kg6 {[%clk 0:07:58.3]} 22. gxf5+ {[%clk 0:07:40.2]} 22... Bxf5 {[%clk 0:08:01.8]} 23. Rg1+ {[%clk 0:07:39]} 23... Kf6 {[%clk 0:07:57.2]} 24. h4 {[%clk 0:07:41.5]} 24... g6 {[%clk 0:07:45.5]} 25. h5 {[%clk 0:07:31.4]} 25... Kg7 {[%clk 0:07:41.4]} 26. hxg6 {[%clk 0:07:24.1]} 26... hxg6 {[%clk 0:07:40.4]} 27. Bb2+ {[%clk 0:07:02.6]} 27... Kh7 {[%clk 0:07:38]} 28. Rg2 {[%clk 0:06:51.4]} 28... Be4 {[%clk 0:07:32.1]} 29. Rh2+ {[%clk 0:06:52.6]} 29... Kg8 {[%clk 0:07:34.9]} 30. Rh8# {[%clk 0:06:52.4]} 1-0

[Event "Live Chess"]
[Site "Chess.com"]
[Date "2011.01.26"]
[Round "-"]
[White "hipposcottimus"]
[Black "lejitico"]
[Result "1-0"]
[CurrentPosition "8/R7/4p2p/6k1/PP2B3/8/8/6K1 b - -"]
[Timezone "UTC"]
[ECO "C41"]
[ECOUrl "https://www.chess.com/openings/Philidor-Defense-3.d4"]
[UTCDate "2011.01.26"]
[UTCTime "01:18:11"]
[WhiteElo "1425"]
[BlackElo "1338"]
[TimeControl "600+5"]
[Termination "hipposcottimus won by resignation"]
[StartTime "01:18:11"]
[EndDate "2011.01.26"]
[EndTime "01:29:20"]
[Link "https://www.chess.com/game/live/91408506"]

1. e4 {[%clk 0:10:00]} 1... e5 {[%clk 0:10:00]} 2. Nf3 {[%clk 0:10:03.3]} 2... d6 {[%clk 0:09:50.2]} 3. d4 {[%clk 0:10:06.5]} 3... c6 {[%clk 0:09:51.1]} 4. dxe5 {[%clk 0:10:10]} 4... dxe5 {[%clk 0:09:53.3]} 5. Qxd8+ {[%clk 0:10:13.9]} 5... Kxd8 {[%clk 0:09:55.1]} 6. Nxe5 {[%clk 0:10:18.5]} 6... Be6 {[%clk 0:09:55.9]} 7. f4 {[%clk 0:10:18.5]} 7... Bd6 {[%clk 0:09:51.4]} 8. f5 {[%clk 0:10:21]} 8... Bxe5 {[%clk 0:09:46.3]} 9. fxe6 {[%clk 0:10:24.9]} 9... fxe6 {[%clk 0:09:49.9]} 10. Bc4 {[%clk 0:10:27.7]} 10... Ke7 {[%clk 0:09:51.3]} 11. O-O {[%clk 0:10:31]} 11... Nf6 {[%clk 0:09:48.8]} 12. Bg5 {[%clk 0:10:29.7]} 12... Nd7 {[%clk 0:09:52.3]} 13. c3 {[%clk 0:10:26.9]} 13... Kf7 {[%clk 0:09:50.4]} 14. Nd2 {[%clk 0:10:25.7]} 14... b5 {[%clk 0:09:47.7]} 15. Bb3 {[%clk 0:10:27.9]} 15... c5 {[%clk 0:09:40.5]} 16. Rad1 {[%clk 0:10:19]} 16... c4 {[%clk 0:09:42]} 17. Nxc4 {[%clk 0:10:22.9]} 17... bxc4 {[%clk 0:09:43.7]} 18. Bxc4 {[%clk 0:10:27]} 18... Rhd8 {[%clk 0:09:31.5]} 19. a4 {[%clk 0:10:25.5]} 19... Nc5 {[%clk 0:09:19.1]} 20. Ra1 {[%clk 0:10:15.6]} 20... Nxe4 {[%clk 0:09:12.4]} 21. h4 {[%clk 0:10:10.6]} 21... Ng3 {[%clk 0:08:34.4]} 22. Rf3 {[%clk 0:10:06.2]} 22... Rd6 {[%clk 0:08:16.7]} 23. b4 {[%clk 0:09:44.4]} 23... Bxc3 {[%clk 0:08:10.4]} 24. Rxc3 {[%clk 0:09:46.8]} 24... Ne2+ {[%clk 0:08:13.4]} 25. Bxe2 {[%clk 0:09:49.7]} 25... Ne4 {[%clk 0:08:10.8]} 26. Rf1+ {[%clk 0:09:34.6]} 26... Kg6 {[%clk 0:08:13.1]} 27. Bd3 {[%clk 0:09:30.1]} 27... Rd4 {[%clk 0:08:00.9]} 28. Bc2 {[%clk 0:09:24.7]} 28... Kh5 {[%clk 0:07:58.3]} 29. g4+ {[%clk 0:08:53.1]} 29... Kxg4 {[%clk 0:07:59.7]} 30. Rf4+ {[%clk 0:08:56.3]} 30... Kh5 {[%clk 0:07:47.7]} 31. Rxe4 {[%clk 0:08:55.9]} 31... Rxe4 {[%clk 0:07:45.8]} 32. Bxe4 {[%clk 0:09:00.5]} 32... Rf8 {[%clk 0:07:47.7]} 33. Rc7 {[%clk 0:09:01.2]} 33... h6 {[%clk 0:07:41.6]} 34. Be3 {[%clk 0:08:33.9]} 34... g5 {[%clk 0:07:29.1]} 35. hxg5 {[%clk 0:08:22.5]} 35... Rg8 {[%clk 0:07:28.5]} 36. Rh7 {[%clk 0:07:56.3]} 36... Rxg5+ {[%clk 0:07:20.1]} 37. Bxg5 {[%clk 0:07:58.3]} 37... Kxg5 {[%clk 0:07:23.9]} 38. Rxa7 {[%clk 0:08:01.5]} 1-0

[Event "Live Chess"]
[Site "Chess.com"]
[Date "2011.01.26"]
[Round "-"]
[White "hipposcottimus"]
[Black "Mmrxp2"]
[Result "0-1"]
[CurrentPosition "5r2/5pk1/p6p/1pp1b3/5q2/1Q2KB2/P7/1R6 w - -"]
[Timezone "UTC"]
[ECO "C41"]
[ECOUrl "https://www.chess.com/openings/Philidor-Defense-3.Bc4"]
[UTCDate "2011.01.26"]
[UTCTime "00:22:59"]
[WhiteElo "1419"]
[BlackElo "1500"]
[TimeControl "600"]
[Termination "Mmrxp2 won on time"]
[StartTime "00:22:59"]
[EndDate "2011.01.26"]
[EndTime "00:40:29"]
[Link "https://www.chess.com/game/live/91395651"]

1. e4 {[%clk 0:10:00]} 1... e5 {[%clk 0:10:00]} 2. Nf3 {[%clk 0:09:59.5]} 2... d6 {[%clk 0:09:58.5]} 3. Bc4 {[%clk 0:09:58.6]} 3... h6 {[%clk 0:09:56.6]} 4. d4 {[%clk 0:09:58.2]} 4... exd4 {[%clk 0:09:54.7]} 5. Nxd4 {[%clk 0:09:54.5]} 5... Nf6 {[%clk 0:09:52]} 6. Nc3 {[%clk 0:09:53.3]} 6... c6 {[%clk 0:09:50.2]} 7. f4 {[%clk 0:09:38.2]} 7... Be7 {[%clk 0:09:46.7]} 8. O-O {[%clk 0:09:34.3]} 8... O-O {[%clk 0:09:43.6]} 9. f5 {[%clk 0:09:27.9]} 9... Nh7 {[%clk 0:09:29.1]} 10. Nce2 {[%clk 0:08:07.2]} 10... Bf6 {[%clk 0:09:17.4]} 11. Be3 {[%clk 0:07:48.1]} 11... d5 {[%clk 0:09:13.5]} 12. Bd3 {[%clk 0:07:39.9]} 12... c5 {[%clk 0:09:04.7]} 13. Nf3 {[%clk 0:07:26.9]} 13... d4 {[%clk 0:08:46.8]} 14. Bf4 {[%clk 0:07:03.3]} 14... Nc6 {[%clk 0:08:43.5]} 15. c3 {[%clk 0:06:56]} 15... dxc3 {[%clk 0:08:14.4]} 16. Nxc3 {[%clk 0:06:49.3]} 16... a6 {[%clk 0:07:53.3]} 17. Nd5 {[%clk 0:06:32.7]} 17... Bxb2 {[%clk 0:07:34.6]} 18. Rb1 {[%clk 0:06:20.4]} 18... Bd4+ {[%clk 0:07:31.6]} 19. Kh1 {[%clk 0:06:16.5]} 19... b5 {[%clk 0:07:10.8]} 20. Bc7 {[%clk 0:05:34.6]} 20... Qd7 {[%clk 0:06:37]} 21. Nb6 {[%clk 0:05:28.1]} 21... Qxc7 {[%clk 0:06:28.4]} 22. Nxa8 {[%clk 0:05:24.6]} 22... Qb7 {[%clk 0:06:14]} 23. Re1 {[%clk 0:04:21.7]} 23... Qxa8 {[%clk 0:06:11.8]} 24. e5 {[%clk 0:04:18.5]} 24... Ng5 {[%clk 0:05:34.6]} 25. f6 {[%clk 0:03:52.6]} 25... Bg4 {[%clk 0:05:18.9]} 26. fxg7 {[%clk 0:03:02.1]} 26... Kxg7 {[%clk 0:05:02.7]} 27. Be2 {[%clk 0:02:32.6]} 27... Ne4 {[%clk 0:04:14.5]} 28. Qb3 {[%clk 0:00:30.5]} 28... Nf2+ {[%clk 0:03:36.3]} 29. Kg1 {[%clk 0:00:26.1]} 29... Nd3+ {[%clk 0:03:26.7]} 30. Kf1 {[%clk 0:00:25.2]} 30... Nxe1 {[%clk 0:03:22.1]} 31. Kxe1 {[%clk 0:00:24.4]} 31... Nxe5 {[%clk 0:03:06.1]} 32. Nxe5 {[%clk 0:00:18]} 32... Bxe5 {[%clk 0:03:03.3]} 33. Bxg4 {[%clk 0:00:16.2]} 33... Qxg2 {[%clk 0:02:59.8]} 34. Bf3 {[%clk 0:00:13.1]} 34... Qg1+ {[%clk 0:02:55.6]} 35. Ke2 {[%clk 0:00:09.3]} 35... Qxh2+ {[%clk 0:02:51.2]} 36. Ke3 {[%clk 0:00:00.4]} 36... Qf4+ {[%clk 0:02:47.6]} 0-1

[Event "Live Chess"]
[Site "Chess.com"]
[Date "2011.01.26"]
[Round "-"]
[White "hipposcottimus"]
[Black "paul31"]
[Result "0-1"]
[CurrentPosition "rn2k2r/pp3p2/3p3q/2pPp3/4P3/3P1PP1/PP6/R2Q1BK1 b kq -"]
[Timezone "UTC"]
[ECO "B20"]
[ECOUrl "https://www.chess.com/openings/Sicilian-Defense-Staunton-Cochrane-Variation"]
[UTCDate "2011.01.26"]
[UTCTime "00:19:05"]
[WhiteElo "1425"]
[BlackElo "1474"]
[TimeControl "120+8"]
[Termination "paul31 won by resignation"]
[StartTime "00:19:05"]
[EndDate "2011.01.26"]
[EndTime "00:22:42"]
[Link "https://www.chess.com/game/live/91394774"]

1. e4 {[%clk 0:02:00]} 1... c5 {[%clk 0:02:00]} 2. c4 {[%clk 0:02:02.3]} 2... Nf6 {[%clk 0:02:02.5]} 3. d3 {[%clk 0:02:09.2]} 3... d6 {[%clk 0:02:08.3]} 4. Bg5 {[%clk 0:02:12.1]} 4... e5 {[%clk 0:02:11.6]} 5. Nf3 {[%clk 0:02:18.4]} 5... h6 {[%clk 0:02:17.6]} 6. Bh4 {[%clk 0:02:24.8]} 6... g5 {[%clk 0:02:23]} 7. Nxg5 {[%clk 0:02:31.8]} 7... hxg5 {[%clk 0:02:28.4]} 8. Bxg5 {[%clk 0:02:39.5]} 8... Be7 {[%clk 0:02:32.1]} 9. Nc3 {[%clk 0:02:42.5]} 9... Nh7 {[%clk 0:02:29.3]} 10. Bxe7 {[%clk 0:02:43.2]} 10... Qxe7 {[%clk 0:02:34.8]} 11. Nd5 {[%clk 0:02:50.5]} 11... Qd8 {[%clk 0:02:28.6]} 12. Be2 {[%clk 0:02:49.2]} 12... Nf6 {[%clk 0:02:33.7]} 13. O-O {[%clk 0:02:51]} 13... Nxd5 {[%clk 0:02:39.5]} 14. cxd5 {[%clk 0:02:53.3]} 14... Qh4 {[%clk 0:02:45.2]} 15. h3 {[%clk 0:02:51]} 15... Bxh3 {[%clk 0:02:49.5]} 16. g3 {[%clk 0:02:42.7]} 16... Qh6 {[%clk 0:02:41.4]} 17. f3 {[%clk 0:02:23.7]} 17... Bxf1 {[%clk 0:02:45.3]} 18. Bxf1 {[%clk 0:02:26.6]} 0-1

[Event "Live Chess"]
[Site "Chess.com"]
[Date "2011.01.25"]
[Round "-"]
[White "hipposcottimus"]
[Black "AmineImad"]
[Result "1-0"]
[CurrentPosition "Q5nB/ppk2p2/3p3p/2pq1Pp1/8/8/P5PP/1N2R2K b - -"]
[Timezone "UTC"]
[ECO "C51"]
[ECOUrl "https://www.chess.com/openings/Giuoco-Piano-Game-Evans-Gambit"]
[UTCDate "2011.01.25"]
[UTCTime "20:09:59"]
[WhiteElo "1651"]
[BlackElo "1387"]
[TimeControl "60"]
[Termination "hipposcottimus won on time"]
[StartTime "20:09:59"]
[EndDate "2011.01.25"]
[EndTime "20:12:11"]
[Link "https://www.chess.com/game/live/91327074"]

1. e4 {[%clk 0:01:00]} 1... e5 {[%clk 0:01:00]} 2. Nf3 {[%clk 0:00:59.7]} 2... Nc6 {[%clk 0:00:59.4]} 3. Bc4 {[%clk 0:00:59.4]} 3... Bc5 {[%clk 0:00:58.6]} 4. b4 {[%clk 0:00:58]} 4... Nxb4 {[%clk 0:00:55.9]} 5. c3 {[%clk 0:00:57.8]} 5... Nc6 {[%clk 0:00:54.8]} 6. O-O {[%clk 0:00:57.5]} 6... Qf6 {[%clk 0:00:53.6]} 7. d4 {[%clk 0:00:57.3]} 7... exd4 {[%clk 0:00:51.4]} 8. Bg5 {[%clk 0:00:56.7]} 8... Qg6 {[%clk 0:00:50.1]} 9. cxd4 {[%clk 0:00:55.8]} 9... Bb6 {[%clk 0:00:47.8]} 10. e5 {[%clk 0:00:50]} 10... h6 {[%clk 0:00:46.9]} 11. Bd3 {[%clk 0:00:48.1]} 11... Qh5 {[%clk 0:00:38.1]} 12. Bh4 {[%clk 0:00:42.5]} 12... g5 {[%clk 0:00:35.7]} 13. Bg3 {[%clk 0:00:40.4]} 13... Nxd4 {[%clk 0:00:29.9]} 14. Nxd4 {[%clk 0:00:33.4]} 14... Bxd4 {[%clk 0:00:28.6]} 15. Be2 {[%clk 0:00:31.2]} 15... Qg6 {[%clk 0:00:27.1]} 16. Bd3 {[%clk 0:00:29.5]} 16... Qe6 {[%clk 0:00:23.9]} 17. Kh1 {[%clk 0:00:19.7]} 17... Bxa1 {[%clk 0:00:22.2]} 18. f4 {[%clk 0:00:19.4]} 18... Bxe5 {[%clk 0:00:20.4]} 19. f5 {[%clk 0:00:18.1]} 19... Qd6 {[%clk 0:00:18.3]} 20. Re1 {[%clk 0:00:17.7]} 20... Kd8 {[%clk 0:00:16]} 21. Bxe5 {[%clk 0:00:16.6]} 21... Qd5 {[%clk 0:00:14.1]} 22. Bxh8 {[%clk 0:00:15.3]} 22... d6 {[%clk 0:00:13.1]} 23. Qe2 {[%clk 0:00:11.6]} 23... Bd7 {[%clk 0:00:05.6]} 24. Bb5 {[%clk 0:00:09.1]} 24... c5 {[%clk 0:00:03.9]} 25. Bxd7 {[%clk 0:00:07.1]} 25... Kxd7 {[%clk 0:00:03.2]} 26. Qb5+ {[%clk 0:00:05.5]} 26... Kd8 {[%clk 0:00:00.9]} 27. Qe8+ {[%clk 0:00:02.9]} 27... Kc7 {[%clk 0:00:00.2]} 28. Qxa8 {[%clk 0:00:02.1]} 1-0

[Event "Live Chess"]
[Site "Chess.com"]
[Date "2011.01.25"]
[Round "-"]
[White "NikolaP"]
[Black "hipposcottimus"]
[Result "0-1"]
[CurrentPosition "6k1/p5pp/2p1pn2/1r6/1P6/P2P4/4KPPP/RNr2B1R w - -"]
[Timezone "UTC"]
[ECO "C44"]
[ECOUrl "https://www.chess.com/openings/Dresden-Opening-3...Nf6"]
[UTCDate "2011.01.25"]
[UTCTime "20:07:28"]
[WhiteElo "1200"]
[BlackElo "1648"]
[TimeControl "60"]
[Termination "hipposcottimus won on time"]
[StartTime "20:07:28"]
[EndDate "2011.01.25"]
[EndTime "20:09:25"]
[Link "https://www.chess.com/game/live/91326396"]

1. e4 {[%clk 0:01:00]} 1... e5 {[%clk 0:01:00]} 2. Nf3 {[%clk 0:00:58.6]} 2... Nc6 {[%clk 0:00:44.9]} 3. c4 {[%clk 0:00:56.9]} 3... Nf6 {[%clk 0:00:43.5]} 4. d3 {[%clk 0:00:55.2]} 4... d5 {[%clk 0:00:42.4]} 5. exd5 {[%clk 0:00:53.4]} 5... Nb4 {[%clk 0:00:42.1]} 6. Bd2 {[%clk 0:00:49.3]} 6... Nbxd5 {[%clk 0:00:40.9]} 7. cxd5 {[%clk 0:00:47.8]} 7... Qxd5 {[%clk 0:00:39.9]} 8. Qa4+ {[%clk 0:00:44.9]} 8... Bd7 {[%clk 0:00:37.4]} 9. Qc4 {[%clk 0:00:39]} 9... Qd6 {[%clk 0:00:30.7]} 10. a3 {[%clk 0:00:33.4]} 10... Be7 {[%clk 0:00:30.1]} 11. Bb4 {[%clk 0:00:31.4]} 11... c5 {[%clk 0:00:29.5]} 12. Bc3 {[%clk 0:00:21.5]} 12... O-O {[%clk 0:00:29.1]} 13. Bxe5 {[%clk 0:00:19.3]} 13... Qc6 {[%clk 0:00:28.7]} 14. Ng5 {[%clk 0:00:17.2]} 14... Be6 {[%clk 0:00:25.7]} 15. Nxe6 {[%clk 0:00:15.7]} 15... fxe6 {[%clk 0:00:25.3]} 16. Qe4 {[%clk 0:00:12.6]} 16... Bd6 {[%clk 0:00:24.7]} 17. Qxc6 {[%clk 0:00:10.4]} 17... bxc6 {[%clk 0:00:22.7]} 18. Bxd6 {[%clk 0:00:09.5]} 18... Rfd8 {[%clk 0:00:22.4]} 19. Bxc5 {[%clk 0:00:08]} 19... Rd5 {[%clk 0:00:22.1]} 20. Bb4 {[%clk 0:00:05]} 20... Rb8 {[%clk 0:00:21.8]} 21. Bc5 {[%clk 0:00:03.6]} 21... Rxc5 {[%clk 0:00:20.3]} 22. b4 {[%clk 0:00:02.7]} 22... Rc1+ {[%clk 0:00:18.4]} 23. Ke2 {[%clk 0:00:00.3]} 23... Rb5 {[%clk 0:00:14.6]} 0-1

[Event "Live Chess"]
[Site "Chess.com"]
[Date "2011.01.25"]
[Round "-"]
[White "hipposcottimus"]
[Black "raghurockseee"]
[Result "1-0"]
[CurrentPosition "2Q1k2r/p3ppbp/3p2p1/8/8/P1N5/1P3PPP/R1B2RK1 b kq -"]
[Timezone "UTC"]
[ECO "B02"]
[ECOUrl "https://www.chess.com/openings/Alekhines-Defense-Two-Pawns-Attack"]
[UTCDate "2011.01.25"]
[UTCTime "20:05:02"]
[WhiteElo "1648"]
[BlackElo "1145"]
[TimeControl "60"]
[Termination "hipposcottimus won by checkmate"]
[StartTime "20:05:02"]
[EndDate "2011.01.25"]
[EndTime "20:06:32"]
[Link "https://www.chess.com/game/live/91325683"]

1. e4 {[%clk 0:01:00]} 1... Nf6 {[%clk 0:01:00]} 2. e5 {[%clk 0:00:57.9]} 2... Nd5 {[%clk 0:00:59.1]} 3. c4 {[%clk 0:00:56.1]} 3... Nb4 {[%clk 0:00:55.4]} 4. a3 {[%clk 0:00:54]} 4... N4c6 {[%clk 0:00:52.4]} 5. d4 {[%clk 0:00:50.8]} 5... d6 {[%clk 0:00:44]} 6. d5 {[%clk 0:00:49.6]} 6... Nxe5 {[%clk 0:00:42.5]} 7. Nf3 {[%clk 0:00:47.7]} 7... Nxf3+ {[%clk 0:00:40.8]} 8. Qxf3 {[%clk 0:00:47.4]} 8... Qd7 {[%clk 0:00:35.6]} 9. Be2 {[%clk 0:00:42.9]} 9... c6 {[%clk 0:00:34.4]} 10. O-O {[%clk 0:00:39.4]} 10... cxd5 {[%clk 0:00:32.6]} 11. cxd5 {[%clk 0:00:39.1]} 11... g6 {[%clk 0:00:20]} 12. Nc3 {[%clk 0:00:38.7]} 12... Bg7 {[%clk 0:00:19.1]} 13. Bb5 {[%clk 0:00:38.3]} 13... Nc6 {[%clk 0:00:12.7]} 14. dxc6 {[%clk 0:00:37.6]} 14... bxc6 {[%clk 0:00:12.1]} 15. Bxc6 {[%clk 0:00:34.1]} 15... Qxc6 {[%clk 0:00:10]} 16. Qxc6+ {[%clk 0:00:33.8]} 16... Bd7 {[%clk 0:00:06.5]} 17. Qxa8+ {[%clk 0:00:33.5]} 17... Bc8 {[%clk 0:00:05.7]} 18. Qxc8# {[%clk 0:00:33.2]} 1-0